bitfinex-derivatives/quotes_ETHF0:USTF0_20241018
["timestamp","ask_amount","ask_price","bid_price","bid_amount"]
[1729229270256,42.96901,2618.6,2618.5,0.611]
[1729229270453,42.96901,2618.6,2618.5,1.991]
[1729229270454,0.38201,2618.6,2618.5,1.991]
[1729229270654,0.3894,2618.8,2618.5,1.991]
[1729229270655,0.38199,2618.8,2618.6,0.38201]
[1729229270853,0.38199,2618.8,2618.7,0.3886]
[1729229271258,0.78249,2618.8,2618.7,0.3886]
[1729229271756,2.16249,2618.8,2618.7,0.3886]
[1729229272659,2.16249,2618.8,2618.7,0.9994]
[1729229274956,2.16249,2618.8,2618.7,1.4084]
[1729229280659,2.16249,2618.8,2618.7,1.0198]
[1729229280860,2.16249,2618.8,2618.7,0.6108]
[1729229292393,2.16249,2618.8,2618.7,1.0047]
[1729229295590,0.78249,2618.8,2618.7,1.0047]
[1729229295793,2.16249,2618.8,2618.7,1.0047]
[1729229298779,2.16249,2618.8,2618.7,0.6108]
[1729229301488,0.4143,2618.9,2618.7,1.9908]
[1729229301689,0.4285,2619.2,2618.8,5.6257]
[1729229301884,44.0078,2619.3,2619.1,1.76193]
[1729229301885,3.2078,2619.3,2619.1,1.76193]
[1729229302091,3.2078,2619.3,2619.2,0.79182]
[1729229302283,4.5878,2619.3,2619.2,1.21912]
[1729229302689,4.5878,2619.3,2619.2,0.8372]
[1729229303586,4.5878,2619.3,2619.2,1.448]
[1729229304596,4.5878,2619.3,2619.2,1.82992]
[1729229304988,4.5878,2619.3,2619.2,1.448]
[1729229305189,4.5878,2619.3,2619.2,1.82992]
[1729229311193,3.2078,2619.3,2619.2,3.20992]
[1729229311392,2.19037,2619.6,2619.3,0.3819]
[1729229311597,0.79406,2619.7,2619.4,1.76189]
[1729229311797,1.38,2619.6,2619.4,1.76189]
[1729229312100,1.76187,2619.6,2619.4,1.76189]
[1729229312499,1.76187,2619.6,2619.4,1.38]
[1729229314196,1.38,2619.5,2619.4,1.38]
[1729229314397,1.38,2619.5,2619.4,1.7619]
[1729229314595,1.38,2619.5,2619.4,5.5795]
[1729229314902,1.38,2619.5,2619.4,5.1976]
[1729229315103,1.76188,2619.5,2619.4,5.1976]
[1729229316297,1.76188,2619.5,2619.4,1.38]
[1729229317199,1.76188,2619.5,2619.4,1.6854]
[1729229317395,1.38,2619.5,2619.4,1.6854]
[1729229317592,1.76188,2619.5,2619.4,1.6854]
[1729229319802,1.38,2619.5,2619.4,1.6854]
[1729229320093,0.836,2619.7,2619.5,0.38187]
[1729229320293,1.21785,2619.7,2619.6,1.38]
[1729229320503,2.59785,2619.7,2619.5,1.786]
[1729229320798,2.59786,2619.7,2619.5,2.16788]
[1729229321189,2.59786,2619.7,2619.5,1.786]
[1729229322093,0.38187,2619.6,2619.5,1.786]
[1729229322293,0.38187,2619.6,2619.5,2.0914]
[1729229322994,1.76187,2619.6,2619.5,0.7114]
[1729229323300,1.76187,2619.6,2619.5,0.3054]
[1729229342110,0.38187,2619.6,2619.5,1.6854]
[1729229342317,0.4122,2619.7,2619.6,0.38187]
[1729229342515,0.4122,2619.7,2619.6,1.76187]
[1729229346126,1.7922,2619.7,2619.6,1.76187]
[1729229346924,1.7922,2619.7,2619.6,2.06717]
[1729229347822,1.7922,2619.7,2619.6,2.37247]
[1729229351227,0.4122,2619.7,2619.6,2.37247]
[1729229354131,4.00037594,2620.2,2620.1,0.38179]
[1729229354438,0.4119,2620.5,2620.4,0.38175]
[1729229354638,7.69976485,2620.6,2620.5,0.38174]
[1729229354639,3.6378,2620.6,2620.5,0.38174]
[1729229354942,3.6378,2620.6,2620.5,1.76174]
[1729229356525,3.6378,2620.6,2620.5,1.38]
[1729229356727,5.39952,2620.6,2620.4,1.38]
[1729229356928,0.4119,2620.5,2620.4,1.38]
[1729229359438,0.79364,2620.5,2620.4,1.38]
[1729229362626,0.07655,2620.4,2620.3,1.38]
[1729229362826,1.7919,2620.5,2620.3,1.38]
[1729229363026,1.76176,2620.4,2620.2,1.38]
[1729229363224,0.419,2620.3,2620.2,1.38]
[1729229364237,1.799,2620.3,2620.1,1.38]
[1729229364436,1.775,2620.2,2620.1,0.3053]
[1729229364630,2.15679,2620.2,2620.1,0.3053]
[1729229368037,11.97359,2620.2,2620.1,0.3053]
[1729229368240,0.38183,2619.9,2619.7,1.38]
[1729229368536,11.97359,2620.2,2619.7,1.38]
[1729229368537,2.16434,2619.8,2619.7,1.6853]
[1729229368937,1.7825,2619.8,2619.7,1.6853]
[1729229369945,1.7825,2619.8,2619.7,1.7249]
[1729229370140,1.7825,2619.8,2619.7,2.10675]
[1729229370442,1.7825,2619.8,2619.7,1.7249]
[1729229370643,2.16434,2619.8,2619.7,1.7249]
[1729229370846,0.78434,2619.8,2619.7,1.7249]
[1729229371342,4.9793,2620.1,2619.8,0.38184]
[1729229371543,0.38181,2620.0,2619.9,1.8108]
[1729229373148,1.76181,2620.0,2619.9,0.4308]
[1729229378140,1.38,2620.0,2619.8,1.38]
[1729229378349,4.3978,2620.1,2619.7,0.3449]
[1729229378350,0.38184,2619.8,2619.7,0.3449]
[1729229378541,1.76184,2619.8,2619.7,0.3449]
[1729229380553,0.38184,2619.8,2619.7,1.7249]
[1729229385153,0.79214,2619.8,2619.7,1.7249]
[1729229390758,0.79214,2619.8,2619.7,0.3449]
[1729229390963,2.17214,2619.8,2619.7,0.3449]
[1729229391960,2.17214,2619.8,2619.7,1.7249]
[1729229391961,5.37994,2619.8,2619.7,1.7249]
[1729229392360,5.37994,2619.8,2619.7,0.3449]
[1729229398859,5.37994,2619.8,2619.7,1.7249]
[1729229400654,3.99994,2619.8,2619.7,1.7249]
[1729229401063,5.37994,2619.8,2619.7,1.7249]
[1729229403569,2.17214,2619.8,2619.7,1.7249]
[1729229405666,0.4103,2619.8,2619.7,1.7249]
[1729229405966,1.38,2619.8,2619.7,2.10675]
[1729229406263,0.38183,2619.9,2619.7,1.7249]
[1729229406465,1.7823,2619.9,2619.7,1.7249]
[1729229406670,0.78412,2619.9,2619.8,0.4138]
[1729229406860,2.16412,2619.9,2619.8,0.4138]
[1729229408571,2.16412,2619.9,2619.8,0.7589]
[1729229416973,2.16412,2619.9,2619.8,0.3451]
[1729229422172,2.16412,2619.9,2619.8,1.7251]
[1729229424179,2.16412,2619.9,2619.8,0.3451]
[1729229430581,0.78412,2619.9,2619.8,0.3451]
[1729229430783,2.16412,2619.9,2619.8,0.7441]
[1729229432500,8.07117594,2620.0,2619.8,0.7441]
[1729229432501,7.58998594,2620.0,2619.8,0.7441]
[1729229432697,0.38179,2620.1,2619.9,0.78912]
[1729229432884,0.77898,2620.2,2620.0,1.38]
[1729229433086,0.77898,2620.2,2620.1,1.38]
[1729229433496,2.15898,2620.2,2620.1,1.38]
[1729229435093,0.38181,2620.1,2620.0,1.38]
[1729229435287,0.38181,2620.1,2619.9,0.4073]
[1729229435288,0.38181,2620.0,2619.9,0.4073]
[1729229435482,2.17751,2620.0,2619.9,0.4073]
[1729229435687,0.79751,2620.0,2619.9,1.7873]
[1729229435991,2.17751,2620.0,2619.9,1.7873]
[1729229437282,2.17751,2620.0,2619.9,2.1325]
[1729229442491,2.17751,2620.0,2619.9,0.3452]
[1729229444792,5.38531,2620.0,2619.9,0.3452]
[1729229446183,2.17751,2620.0,2619.9,0.3452]
[1729229447387,5.38531,2620.0,2619.9,1.7252]
[1729229447588,2.17751,2620.0,2619.9,1.7252]
[1729229450891,2.17751,2620.0,2619.9,0.3452]
[1729229453399,5.38531,2620.0,2619.9,0.3452]
[1729229453999,2.17751,2620.0,2619.9,0.3452]
[1729229454193,5.38531,2620.0,2619.9,0.3452]
[1729229455391,2.17751,2620.0,2619.9,0.3452]
[1729229456399,5.38531,2620.0,2619.9,0.3452]
[1729229456896,2.17751,2620.0,2619.9,0.3452]
[1729229457397,5.38531,2620.0,2619.9,0.3452]
[1729229458896,9.38568594,2620.0,2619.9,0.3452]
[1729229460800,2.17751,2620.0,2619.9,0.3452]
[1729229460992,5.38531,2620.0,2619.9,0.3452]
[1729229462291,9.38568594,2620.0,2619.9,0.3452]
[1729229463793,5.38531,2620.0,2619.9,0.3452]
[1729229465386,2.17751,2620.0,2619.9,0.3452]
[1729229465987,5.38531,2620.0,2619.9,0.3452]
[1729229468203,2.17751,2620.0,2619.9,0.3452]
[1729229468394,5.38531,2620.0,2619.9,0.3452]
[1729229472706,5.38531,2620.0,2619.9,0.7558]
[1729229475504,3.2078,2620.3,2619.9,5.9526]
[1729229475804,8.14537594,2620.6,2620.3,0.38176]
[1729229475805,1.38,2620.5,2620.3,0.38176]
[1729229476008,1.2787,2620.6,2620.4,2.2066]
[1729229476206,1.7967,2620.6,2620.5,1.38]
[1729229476395,1.38,2620.5,2620.4,2.6289]
[1729229476600,1.38,2620.5,2620.4,1.2489]
[1729229476797,1.76174,2620.5,2620.4,1.2489]
[1729229477207,1.38,2620.5,2620.4,1.2489]
[1729229477512,1.76174,2620.5,2620.4,1.1719]
[1729229477709,2.15624,2620.5,2620.4,1.1719]
[1729229478606,0.77624,2620.5,2620.4,1.1719]
[1729229479003,2.15624,2620.5,2620.4,1.1719]
[1729229483318,1.7745,2620.5,2620.4,1.1719]
[1729229483516,40.22208,2620.7,2620.4,2.5519]
[1729229483722,1.38,2620.6,2620.5,1.38]
[1729229484015,1.76172,2620.6,2620.5,1.38]
[1729229484223,1.38,2620.6,2620.5,1.38]
[1729229485219,1.76172,2620.6,2620.5,1.38]
[1729229486105,1.76172,2620.6,2620.4,2.5519]
[1729229486306,1.38,2620.5,2620.4,2.5519]
[1729229487915,1.38,2620.5,2620.4,2.93365]
[1729229488216,1.38,2620.5,2620.4,2.5519]
[1729229488513,1.76172,2620.6,2620.4,2.5519]
[1729229488816,1.76172,2620.6,2620.4,2.2467]
[1729229490317,1.76172,2620.6,2620.5,0.3052]
[1729229496524,39.36008,2620.7,2620.5,1.6852]
[1729229496715,1.38,2620.6,2620.5,1.6852]
[1729229496918,1.38,2620.6,2620.5,2.06694]
[1729229497315,41.12179,2620.7,2620.5,2.06694]
[1729229497520,41.12179,2620.7,2620.5,1.6852]
[1729229497733,0.38172,2620.6,2620.5,1.6852]
[1729229498024,1.76172,2620.6,2620.5,0.3052]
[1729229502024,1.76172,2620.6,2620.5,0.3455]
[1729229503426,2.16802,2620.6,2620.5,0.3455]
[1729229512930,0.78802,2620.6,2620.5,0.3455]
[1729229514025,0.38172,2620.6,2620.5,1.7255]
[1729229517123,0.38172,2620.6,2620.5,2.10724]
[1729229517533,39.74179,2620.7,2620.5,1.7255]
[1729229517726,39.74179,2620.7,2620.6,1.38]
[1729229517927,39.74179,2620.7,2620.6,1.7958]
[1729229518433,39.36008,2620.7,2620.6,1.7958]
[1729229518630,39.74179,2620.7,2620.6,1.7958]
[1729229519132,41.12179,2620.7,2620.6,1.7958]
[1729229519832,41.12179,2620.7,2620.6,1.8362]
[1729229520429,40.74008,2620.7,2620.6,1.8362]
[1729229520633,40.74008,2620.7,2620.6,2.21792]
[1729229520830,41.12179,2620.7,2620.6,1.8362]
[1729229522029,40.74008,2620.7,2620.6,2.1414]
[1729229522422,41.12179,2620.7,2620.6,2.1414]
[1729229523028,39.36008,2620.7,2620.6,2.1414]
[1729229523231,39.36008,2620.7,2620.6,2.52312]
[1729229523537,39.36008,2620.7,2620.6,2.1414]
[1729229524031,39.74179,2620.7,2620.6,2.1414]
[1729229524232,39.36008,2620.7,2620.6,2.1414]
[1729229524937,39.74179,2620.7,2620.6,2.1414]
[1729229525539,39.74179,2620.7,2620.6,0.7614]
[1729229526127,41.12179,2620.7,2620.6,0.7614]
[1729229526535,41.12179,2620.7,2620.6,0.3456]
[1729229529544,81.92179,2620.7,2620.6,0.3456]
[1729229530443,41.12179,2620.7,2620.6,0.3456]
[1729229534047,45.12216594,2620.7,2620.6,0.3456]
[1729229534431,43.74216594,2620.7,2620.6,0.3456]
[1729229534640,45.12216594,2620.7,2620.6,0.3456]
[1729229536939,41.12179,2620.7,2620.6,0.3456]
[1729229537134,55.42975485,2620.7,2620.6,0.3456]
[1729229537447,56.80975485,2620.7,2620.6,0.3456]
[1729229537647,50.93779,2620.7,2620.6,0.3456]
[1729229537940,52.31779,2620.7,2620.6,0.3456]
[1729229538138,55.44466747,2620.7,2620.6,0.3456]
[1729229538738,50.93779,2620.7,2620.6,0.3456]
[1729229538943,52.31779,2620.7,2620.6,0.3456]
[1729229539536,52.31779,2620.7,2620.0,1.38]
[1729229539537,0.38179,2620.2,2620.0,1.38]
[1729229539740,2.19129,2620.1,2620.0,1.38]
[1729229540142,1.8095,2620.1,2620.0,1.38]
[1729229540641,2.19129,2620.1,2620.0,1.38]
[1729229541233,2.19129,2620.1,2620.0,1.6853]
[1729229543348,2.19129,2620.1,2620.0,0.3053]
[1729229549253,0.81129,2620.1,2620.0,1.6853]
[1729229549449,2.19129,2620.1,2620.0,1.6853]
[1729229550756,0.81129,2620.1,2620.0,1.6853]
[1729229550952,0.38179,2620.2,2620.0,2.49841]
[1729229551253,0.38179,2620.2,2620.1,1.38]
[1729229551556,0.38179,2620.2,2620.1,1.76179]
[1729229551751,4.9081,2620.6,2620.1,11.1968]
[1729229551951,4.9081,2620.6,2620.5,1.38]
[1729229551952,4.02072,2620.6,2620.5,1.38]
[1729229552255,3.58952,2620.6,2620.5,1.38]
[1729229552459,3.58952,2620.6,2620.5,2.1898]
[1729229554155,4.96952,2620.6,2620.5,2.1898]
[1729229555355,1.76172,2620.6,2620.5,0.8098]
[1729229558060,41.12179,2620.7,2620.5,2.57153]
[1729229558659,39.36008,2620.7,2620.6,4.96952]
[1729229558862,39.36008,2620.7,2620.6,5.36482]
[1729229559155,39.36008,2620.7,2620.6,5.67002]
[1729229563652,39.36008,2620.7,2620.6,9.48602]
[1729229564062,39.36008,2620.7,2620.6,5.67002]
[1729229564361,39.36008,2620.7,2620.6,9.48602]
[1729229566158,39.36008,2620.7,2620.6,5.67002]
[1729229566375,41.12179,2620.7,2620.6,0.3052]
[1729229566852,45.79779,2620.7,2620.6,0.3052]
[1729229567052,0.95432,2620.6,2620.1,1.7833]
[1729229567254,3.2078,2620.5,2620.3,1.38]
[1729229567454,1.76175,2620.4,2620.3,1.38]
[1729229567659,0.38176,2620.3,2620.2,1.7711]
[1729229567860,2.16126,2620.3,2620.2,1.7711]
[1729229568069,2.58606,2620.3,2620.2,1.7711]
[1729229568471,2.58606,2620.3,2620.2,0.3911]
[1729229568676,2.58606,2620.3,2620.2,0.4087]
[1729229568879,2.58606,2620.3,2620.2,0.0176]
[1729229579078,0.38176,2620.3,2620.2,1.3976]
[1729229579775,0.4143,2620.4,2620.3,0.38176]
[1729229579976,0.4108,2620.6,2620.3,1.8046]
[1729229580181,1.38,2620.6,2620.5,1.38]
[1729229580379,1.38,2620.6,2620.3,0.8175]
[1729229580677,39.36008,2620.7,2620.3,0.3929]
[1729229580678,1.76175,2620.4,2620.3,0.3929]
[1729229581284,1.76175,2620.4,2620.2,1.3976]
[1729229581285,0.38176,2620.3,2620.2,1.3976]
[1729229582185,0.4026,2620.5,2620.2,1.3976]
[1729229582374,0.4026,2620.5,2620.4,1.76175]
[1729229583180,0.4026,2620.5,2620.4,2.15675]
[1729229583984,40.20528,2620.7,2620.4,5.591]
[1729229583985,40.58699,2620.7,2620.4,5.591]
[1729229584191,40.16949,2620.7,2620.5,1.76173]
[1729229584376,0.38172,2620.6,2620.5,1.38]
[1729229584576,0.38172,2620.6,2620.5,1.76174]
[1729229585485,41.16778,2620.7,2620.5,1.38]
[1729229585694,0.38172,2620.6,2620.5,1.38]
[1729229586186,41.54949,2620.7,2620.5,1.76173]
[1729229586587,41.5495,2620.7,2620.5,1.76173]
[1729229587390,0.38172,2620.6,2620.5,1.38]
[1729229587590,41.54949,2620.7,2620.5,1.76174]
[1729229588084,41.5495,2620.7,2620.5,1.76173]
[1729229588594,40.16949,2620.7,2620.6,1.38]
[1729229588795,41.54949,2620.7,2620.6,1.38]
[1729229589185,41.54949,2620.7,2620.6,1.76172]
[1729229589186,39.36008,2620.7,2620.6,1.76172]
[1729229593590,41.12179,2620.7,2620.6,0.38172]
[1729229593893,41.12179,2620.7,2620.5,1.76172]
[1729229594086,39.74179,2620.7,2620.6,1.38]
[1729229594292,39.36008,2620.7,2620.6,1.76172]
[1729229596298,40.74008,2620.7,2620.5,1.38]
[1729229596488,41.51659,2620.7,2620.6,0.38172]
[1729229596689,41.13488,2620.7,2620.5,1.38]
[1729229596889,1.38,2620.6,2620.4,0.8182]
[1729229597090,1.7691,2620.6,2620.4,2.1982]
[1729229597395,2.15083,2620.6,2620.5,0.38174]
[1729229598395,0.36444,2620.5,2620.4,2.57994]
[1729229598695,0.36444,2620.5,2620.4,0.8182]
[1729229598884,0.36444,2620.5,2620.4,0.395]
[1729229599588,0.36444,2620.5,2620.3,3.635]
[1729229599589,1.74444,2620.5,2620.3,3.635]
[1729229599785,0.427,2620.4,2620.3,5.39676]
[1729229600093,0.80875,2620.4,2620.3,5.39676]
[1729229600394,0.80875,2620.4,2620.3,0.38176]
[1729229600395,2.18875,2620.4,2620.3,0.38176]
[1729229600597,0.38176,2620.3,2620.2,1.76177]
[1729229600895,1.807,2620.4,2620.2,1.38]
[1729229600896,2.18876,2620.4,2620.2,1.38]
[1729229601099,0.38176,2620.3,2620.2,1.38]
[1729229601490,0.38176,2620.3,2620.2,1.76177]
[1729229604095,0.38176,2620.3,2620.1,1.7995]
[1729229604096,0.38178,2620.2,2620.1,1.7995]
[1729229604295,2.1777,2620.2,2619.9,0.4242]
[1729229604499,0.38183,2619.9,2619.8,0.38184]
[1729229604694,1.38,2619.8,2619.7,2.18124]
[1729229604892,2.17354,2619.8,2619.7,1.7994]
[1729229605403,2.17354,2619.8,2619.7,0.4194]
[1729229606293,1.7917,2619.8,2619.7,0.80125]
[1729229606803,2.96254,2619.8,2619.7,0.4194]
[1729229607505,2.5807,2619.8,2619.7,0.80125]
[1729229607708,2.5807,2619.8,2619.7,2.18125]
[1729229612799,2.5807,2619.8,2619.6,5.49084988]
[1729229613004,1.76185,2619.7,2619.6,5.49084988]
[1729229614314,1.76185,2619.7,2619.6,5.87271988]
[1729229614608,1.38,2619.7,2619.6,7.25271988]
[1729229614803,1.76185,2619.7,2619.6,7.25271988]
[1729229615194,1.76185,2619.7,2619.6,5.87271988]
[1729229615600,1.38,2619.7,2619.6,5.87271988]
[1729229615902,1.76186,2619.7,2619.6,0.38187]
[1729229616100,1.38,2619.7,2619.6,0.38187]
[1729229616896,1.38,2619.7,2619.6,1.76187]
[1729229618012,0.8105,2619.8,2619.6,1.38]
[1729229618207,2.1905,2619.8,2619.7,2.15665]
[1729229618406,2.1905,2619.8,2619.7,0.77665]
[1729229618807,2.1905,2619.8,2619.7,1.19635]
[1729229620306,2.1905,2619.8,2619.7,2.57635]
[1729229624716,1.76183,2619.9,2619.7,2.1945]
[1729229625021,2.17842,2620.0,2619.9,0.38182]
[1729229626719,2.17842,2620.0,2619.8,1.76183]
[1729229627217,1.38,2619.9,2619.8,1.76183]
[1729229629518,1.76182,2619.9,2619.8,1.76183]
[1729229630722,1.38,2619.9,2619.8,1.76183]
[1729229631119,1.76182,2619.9,2619.8,1.76183]
[1729229631825,1.38,2619.9,2619.8,1.76183]
[1729229632720,1.76182,2619.9,2619.8,1.76183]
[1729229633327,1.38,2619.9,2619.8,0.38183]
[1729229633726,1.7966,2620.0,2619.9,0.38182]
[1729229633914,1.7966,2620.0,2619.9,1.76182]
[1729229634119,1.7966,2620.0,2619.9,0.38182]
[1729229634926,2.17841,2620.0,2619.9,0.38182]
[1729229635316,1.7966,2620.0,2619.9,0.38182]
[1729229636922,2.17841,2620.0,2619.7,2.1945]
[1729229637226,1.38,2619.8,2619.7,1.19635]
[1729229638729,1.38,2619.8,2619.7,2.57635]
[1729229639143,1.76184,2619.8,2619.7,1.7997]
[1729229639341,0.38187,2619.6,2619.5,1.76187]
[1729229639542,1.76187,2619.6,2619.5,1.76187]
[1729229639940,1.76187,2619.6,2619.5,0.38187]
[1729229640441,1.38,2619.6,2619.5,1.76187]
[1729229641644,2.96726,2619.7,2619.5,1.38]
[1729229641850,2.96726,2619.7,2619.6,1.76187]
[1729229642052,2.96726,2619.7,2619.6,1.79568056]
[1729229643940,2.96726,2619.7,2619.6,0.03381056]
[1729229644644,6.78486,2619.7,2619.6,0.03381056]
[1729229646353,2.96726,2619.7,2619.6,0.03381056]
[1729229650844,1.58726,2619.7,2619.6,0.03381056]
[1729229651056,0.95452,2620.1,2619.6,0.03381056]
[1729229651057,1.38,2620.1,2619.7,0.38184]
[1729229651350,1.7758,2620.1,2619.9,1.38]
[1729229651553,1.38,2620.0,2619.9,1.76181]
[1729229651744,1.38,2620.0,2619.9,1.38]
[1729229652150,1.38,2620.0,2619.9,1.79563056]
[1729229652346,0.3958,2620.1,2620.0,0.38181]
[1729229652845,1.7758,2620.1,2620.0,0.38181]
[1729229653047,1.7758,2620.1,2620.0,1.76181]
[1729229653242,1.7758,2620.1,2620.0,0.41562056]
[1729229653650,1.7758,2620.1,2620.0,1.41381056]
[1729229653840,1.7758,2620.1,2620.0,0.03381056]
[1729229654246,1.7758,2620.1,2620.0,1.79562056]
[1729229655355,3.2078,2620.2,2620.0,1.41381056]
[1729229655549,3.2078,2620.2,2620.1,1.76179]
[1729229655853,4.5878,2620.2,2620.1,0.38179]
[1729229656159,1.7755,2620.4,2620.3,0.38176]
[1729229656454,1.7755,2620.4,2620.3,0.03381056]
[1729229656645,1.7755,2620.4,2620.3,0.41557056]
[1729229659458,1.38,2620.4,2620.3,0.41557056]
[1729229659766,83.36788,2620.7,2620.6,0.38172]
[1729229659767,39.36008,2620.7,2620.6,0.38172]
[1729229660057,40.74008,2620.7,2620.6,0.38172]
[1729229660257,40.74008,2620.7,2620.6,0.41553056]
[1729229660454,40.74008,2620.7,2620.6,0.84633056]
[1729229661161,39.36008,2620.7,2620.6,2.22633056]
[1729229662961,39.36008,2620.7,2620.6,12.04233056]
[1729229663759,39.36008,2620.7,2620.6,15.25013056]
[1729229666664,39.36008,2620.7,2620.6,9.25013056]
[1729229669558,39.36008,2620.7,2620.6,15.25013056]
[1729229670261,39.36008,2620.7,2620.6,9.25013056]
[1729229670457,39.36008,2620.7,2620.6,15.25013056]
[1729229671666,39.36008,2620.7,2620.6,9.25013056]
[1729229672581,39.36008,2620.7,2620.6,5.43413056]
[1729229672772,39.36008,2620.7,2620.6,4.05413056]
[1729229672971,39.36008,2620.7,2620.6,5.43413056]
[1729229673976,39.36008,2620.7,2620.6,4.05413056]
[1729229674166,39.36008,2620.7,2620.6,5.05241056]
[1729229674167,40.74008,2620.7,2620.6,5.05241056]
[1729229674368,40.74008,2620.7,2620.6,5.43413056]
[1729229674576,40.74008,2620.7,2620.6,5.05241056]
[1729229674767,40.74008,2620.7,2620.6,5.43413056]
[1729229675166,39.36008,2620.7,2620.6,5.43413056]
[1729229679976,39.36008,2620.7,2620.6,2.22633056]
[1729229680284,39.36008,2620.7,2620.6,5.43413056]
[1729229681380,39.36008,2620.7,2620.6,2.22633056]
[1729229684984,39.36008,2620.7,2620.6,1.79553056]
[1729229693891,39.74179,2620.7,2620.6,1.79553056]
[1729229694090,39.36008,2620.7,2620.6,1.79553056]
[1729229694784,39.36008,2620.7,2620.4,3.2078]
[1729229694785,54.14559,2620.7,2619.8,5.16319053]
[1729229694988,54.14559,2620.7,2620.1,0.38179]
[1729229694989,1.38,2620.2,2620.1,0.38179]
[1729229695290,1.76177,2620.3,2620.1,1.38]
[1729229695493,2.54487,2620.3,2620.2,0.38178]
[1729229695693,2.1631,2620.3,2620.2,1.76178]
[1729229696190,0.7831,2620.3,2620.2,1.76178]
[1729229696785,1.16486,2620.3,2620.2,1.76178]
[1729229696985,0.7831,2620.3,2620.2,1.76178]
[1729229698194,1.2139,2620.3,2620.2,1.76178]
[1729229698789,0.8202,2620.3,2620.2,1.76178]
[1729229702287,3.58955,2620.5,2620.2,1.38]
[1729229702602,5.79745,2620.5,2620.4,1.38]
[1729229702996,5.79745,2620.5,2620.4,1.7921]
[1729229703398,4.41745,2620.5,2620.4,1.7921]
[1729229704206,4.41745,2620.5,2620.4,2.17385]
[1729229704400,5.4157,2620.5,2620.1,0.38179]
[1729229704606,1.38,2620.2,2620.0,1.7909]
[1729229704804,0.38181,2620.0,2619.9,2.37994981]
[1729229705503,1.76181,2620.0,2619.9,2.37994981]
[1729229705707,0.38181,2620.0,2619.9,2.37994981]
[1729229706011,0.38181,2620.0,2619.9,1.38]
[1729229706213,0.38181,2620.0,2619.9,1.76182]
[1729229706706,2.5791,2620.1,2619.9,1.76182]
[1729229707009,0.38181,2620.0,2619.9,1.76182]
[1729229707411,1.5809,2620.1,2619.9,1.76182]
[1729229707706,1.76181,2620.0,2619.9,1.76182]
[1729229708310,1.38,2620.0,2619.9,1.76182]
[1729229708611,1.76181,2620.0,2619.9,1.76182]
[1729229708798,1.76181,2620.0,2619.9,1.38]
[1729229709205,1.38,2620.0,2619.9,1.38]
[1729229709403,2.5791,2620.1,2619.9,1.76182]
[1729229709709,2.5791,2620.1,2619.9,1.38]
[1729229709710,2.9609,2620.1,2619.9,1.38]
[1729229710206,2.5791,2620.1,2619.9,1.76182]
[1729229710408,2.9609,2620.1,2619.9,1.76182]
[1729229710903,2.5791,2620.1,2620.0,1.38]
[1729229711302,2.5791,2620.1,2620.0,1.76181]
[1729229711606,2.96089,2620.1,2620.0,1.38]
[1729229712410,2.96089,2620.1,2619.9,1.76182]
[1729229712908,1.38,2620.0,2619.9,1.76182]
[1729229713111,1.38,2620.0,2619.9,1.38]
[1729229713308,1.76181,2620.0,2619.9,1.38]
[1729229713510,1.76181,2620.0,2619.8,2.17273]
[1729229713511,1.38,2620.0,2619.8,2.17273]
[1729229713712,1.38,2619.9,2619.8,2.17273]
[1729229714106,1.76182,2619.9,2619.8,2.17273]
[1729229714510,1.38,2619.9,2619.8,0.4109]
[1729229714710,1.38,2619.9,2619.8,2.17274]
[1729229716109,1.38,2620.0,2619.9,0.38181]
[1729229716309,1.38,2620.0,2619.9,1.76181]
[1729229716607,2.9609,2620.1,2620.0,0.38181]
[1729229717718,2.9609,2620.1,2619.9,1.38]
[1729229717907,1.38,2620.0,2619.9,1.76181]
[1729229718515,1.76181,2620.0,2619.9,1.76181]
[1729229720314,0.38181,2620.0,2619.9,1.76181]
[1729229720613,1.76181,2620.0,2619.9,1.76181]
[1729229720810,1.76181,2620.0,2619.9,1.76182]
[1729229721210,1.38,2620.0,2619.9,1.76182]
[1729229722015,1.76181,2620.0,2619.9,1.76182]
[1729229722411,1.38,2620.0,2619.9,1.76182]
[1729229722717,2.5791,2620.1,2620.0,0.38181]
[1729229722916,1.1991,2620.1,2620.0,1.76181]
[1729229723214,2.96089,2620.1,2620.0,1.76181]
[1729229723715,2.5791,2620.1,2620.0,1.76181]
[1729229723911,2.96089,2620.1,2620.0,1.76181]
[1729229724312,2.96089,2620.1,2620.0,1.38]
[1729229724516,2.96089,2620.1,2620.0,1.76181]
[1729229725225,2.5791,2620.1,2620.0,1.76181]
[1729229725517,0.4005,2620.1,2620.0,1.76181]
[1729229728313,39.36008,2620.7,2620.6,0.38172]
[1729229728619,39.36008,2620.7,2620.6,1.76172]
[1729229729022,40.74008,2620.7,2620.6,0.38172]
[1729229729212,41.12978,2620.7,2620.4,1.38]
[1729229729522,41.12978,2620.7,2620.6,0.38172]
[1729229730110,41.12978,2620.7,2620.4,1.38]
[1729229730425,41.12978,2620.7,2620.6,1.76172]
[1729229730616,41.12978,2620.7,2620.6,1.38]
[1729229731012,41.12978,2620.7,2620.6,1.76172]
[1729229731315,39.74978,2620.7,2620.6,1.76172]